fUST/lending_fUST_20250623
["ID","MTS","AMOUNT","RATE_DAILY","PERIOD"]
[367020403,1750618313136,-6261.38,0.00041369,120]
[367020404,1750618313174,-769.92,0.00041369,120]
[367020405,1750618313214,-282.04618298,0.00041369,120]
[367020406,1750618313260,-7683.05,0.00041369,120]
[367020407,1750618313302,-460.0,0.00041369,120]
[367020408,1750618313343,-327.42565618,0.00041369,120]
[367020409,1750618313390,-460.0,0.00041369,120]
[367020410,1750618313435,-666.34,0.00041369,120]
[367020411,1750618313480,-460.0,0.00041369,120]
[367020412,1750618313525,-460.0,0.00041369,120]
[367020413,1750618313574,-460.0,0.00041369,120]
[367020414,1750618313623,-500.0,0.00041369,120]
[367020415,1750618313669,-12955.9,0.00041369,120]
[367020416,1750618313715,-460.0,0.00041369,120]
[367020417,1750618313761,-460.0,0.00041369,120]
[367020418,1750618313807,-460.0,0.00041643,120]
[367020419,1750618313852,-460.0,0.00041643,120]
[367020420,1750618313898,-460.0,0.00041643,120]
[367020421,1750618313945,-683.88,0.00041643,120]
[367020422,1750618313992,-528.57,0.00041643,120]
[367020423,1750618314039,-3929.24,0.00041643,120]
[367020424,1750618314087,-1876.21,0.00041643,120]
[367020425,1750618314132,-460.0,0.00041643,30]
[367020426,1750618314178,-460.0,0.00041643,120]
[367020427,1750618314222,-603.53,0.00041643,120]
[367020428,1750618314266,-301.96188241,0.00041643,120]
[367020429,1750618314310,-460.0,0.00041643,120]
[367020430,1750618314353,-6261.38,0.00041643,120]
[367020431,1750618314396,-769.92,0.00041643,120]
[367020432,1750618314438,-7683.05,0.00041643,120]
[367020434,1750618314480,-460.0,0.00041643,120]
[367020436,1750618314523,-460.0,0.00041643,120]
[367020438,1750618314569,-666.34,0.00041643,120]
[367020440,1750618314609,-460.0,0.00041643,120]
[367020442,1750618314650,-460.0,0.00041643,120]
[367020444,1750618314691,-460.0,0.00041643,120]
[367020446,1750618314732,-502.89588017,0.00041643,120]
[367020448,1750618314774,-12955.9,0.00041643,120]
[367020450,1750618314815,-406.0051348,0.00041643,120]
[367020452,1750618314857,-460.0,0.00041643,120]
[367020453,1750618314906,-152.0,0.00041827,31]
[367020456,1750618314965,-152.81326551,0.00041917,120]
[367020457,1750618315014,-460.0,0.00041917,120]
[367020459,1750618315069,-460.0,0.00041917,120]
[367020462,1750618315125,-683.88,0.00041917,120]
[367020464,1750618315181,-528.57,0.00041917,120]
[367020465,1750618315235,-3929.24,0.00041917,120]
[367020468,1750618315290,-460.0,0.00041917,30]
[367020470,1750618315348,-1876.21,0.00041917,120]
[367020471,1750618315403,-460.0,0.00041917,120]
[367020473,1750618315459,-603.53,0.00041917,120]
[367020476,1750618315516,-460.0,0.00041917,120]
[367020477,1750618315568,-6261.38,0.00041917,120]
[367020482,1750618315752,-769.92,0.00041917,120]
[367020484,1750618315804,-7683.05,0.00041917,120]
[367020486,1750618315854,-460.0,0.00041917,120]
[367020489,1750618315903,-460.0,0.00041917,120]
[367020491,1750618315955,-666.34,0.00041917,120]
[367020493,1750618316007,-460.0,0.00041917,120]
[367020494,1750618316057,-460.0,0.00041917,120]
[367020496,1750618316101,-460.0,0.00041917,120]
[367020497,1750618316147,-12955.9,0.00041917,120]
[367020498,1750618316192,-460.0,0.00041917,120]
[367020499,1750618316237,-160.0,0.00042,120]
[367020500,1750618316283,-460.0,0.00042191,120]
[367020501,1750618316330,-460.0,0.00042191,120]
[367020503,1750618316370,-683.88,0.00042191,120]
[367020505,1750618316421,-528.57,0.00042191,120]
[367020507,1750618316475,-3929.24,0.00042191,120]
[367020509,1750618316527,-460.0,0.00042191,30]
[367020511,1750618316583,-1876.21,0.00042191,120]
[367020513,1750618316633,-460.0,0.00042191,120]
[367020514,1750618316685,-603.53,0.00042191,120]
[367020517,1750618316737,-460.0,0.00042191,120]
[367020518,1750618316791,-6261.38,0.00042191,120]
[367020520,1750618316844,-769.92,0.00042191,120]
[367020523,1750618316910,-7683.05,0.00042191,120]
[367020525,1750618316957,-460.0,0.00042191,120]
[367020527,1750618316999,-460.0,0.00042191,120]
[367020528,1750618317048,-666.34,0.00042191,120]
[367020531,1750618317099,-460.0,0.00042191,120]
[367020532,1750618317151,-460.0,0.00042191,120]
[367020535,1750618317204,-460.0,0.00042191,120]
[367020537,1750618317257,-12955.9,0.00042191,120]
[367020538,1750618317309,-460.0,0.00042191,120]
[367020541,1750618317361,-152.0,0.00042432,31]
[367020543,1750618317413,-882.91488272,0.00042465,120]
[367020545,1750618317465,-309.69558229,0.00042465,120]
[367020547,1750618317518,-460.0,0.00042465,120]
[367020549,1750618317573,-460.0,0.00042465,120]
[367020551,1750618317625,-460.0,0.00042465,120]
[367020553,1750618317678,-3646.26,0.00042465,120]
[367020555,1750618317730,-460.0,0.00042465,120]
[367020557,1750618317783,-477.42,0.00042465,120]
[367020559,1750618317834,-460.0,0.00042465,120]
[367020560,1750618317885,-460.0,0.00042465,120]
[367020563,1750618317935,-460.0,0.00042465,120]
[367020565,1750618317986,-460.0,0.00042465,120]
[367020566,1750618318036,-460.0,0.00042465,120]
[367020569,1750618318089,-460.0,0.00042465,120]
[367020571,1750618318141,-460.0,0.00042465,120]
[367020573,1750618318191,-460.0,0.00042465,120]
[367020575,1750618318251,-460.0,0.00042465,120]
[367020577,1750618318304,-569.76,0.00042465,120]
[367020579,1750618318354,-460.0,0.00042465,120]
[367020581,1750618318406,-460.0,0.00042465,120]
[367020582,1750618318457,-462.94,0.00042465,120]
[367020585,1750618318508,-460.0,0.00042465,120]
[367020587,1750618318561,-460.0,0.00042465,120]
[367020589,1750618318613,-460.0,0.00042465,120]
[367020591,1750618318664,-460.0,0.00042465,120]
[367020593,1750618318717,-460.0,0.00042465,120]
[367020594,1750618318772,-460.0,0.00042465,120]
[367020596,1750618318826,-567.25,0.00042465,120]
[367020599,1750618318880,-460.0,0.00042465,120]
[367020600,1750618318933,-460.0,0.00042465,120]
[367020603,1750618318984,-641.12,0.00042465,120]
[367020605,1750618319037,-460.0,0.00042465,120]
[367020607,1750618319088,-460.0,0.00042465,120]
[367020609,1750618319143,-460.0,0.00042465,120]
[367020610,1750618319195,-1004.95,0.00042465,120]
[367020613,1750618319246,-460.0,0.00042465,120]
[367020615,1750618319298,-460.0,0.00042465,120]
[367020616,1750618319350,-460.0,0.00042465,120]
[367020618,1750618319402,-2639.78,0.00042465,120]
[367020620,1750618319453,-460.0,0.00042465,120]
[367020623,1750618319505,-616.99,0.00042465,120]
[367020624,1750618319556,-2242.43,0.00042465,120]
[367020626,1750618319610,-460.0,0.00042465,120]
[367020629,1750618319666,-612.4,0.00042465,120]
[367020630,1750618319721,-460.0,0.00042465,120]
[367020632,1750618319774,-783.25,0.00042465,120]
[367020634,1750618319827,-460.0,0.00042465,120]
[367020636,1750618319878,-460.0,0.00042465,120]
[367020639,1750618319931,-460.0,0.00042465,120]
[367020640,1750618319981,-460.0,0.00042465,120]
[367020643,1750618320034,-460.0,0.00042465,120]
[367020645,1750618320086,-460.0,0.00042465,120]
[367020646,1750618320141,-460.0,0.00042465,120]
[367020649,1750618320195,-429.08357843,0.00042465,120]
[367020651,1750618320253,-589.46177402,0.00042465,120]
[367020652,1750618320306,-460.0,0.00042465,120]
[367020655,1750618320359,-502.89,0.00042465,120]
[367020657,1750618320414,-460.0,0.00042465,120]
[367020658,1750618320470,-754.1,0.00042465,120]
[367020660,1750618320523,-460.0,0.00042465,120]
[367020662,1750618320584,-460.0,0.00042465,120]
[367020668,1750618320813,-460.0,0.00042465,120]
[367020670,1750618320856,-353.80887487,0.00042465,120]
[367020672,1750618320910,-460.0,0.00042465,120]
[367020674,1750618320965,-822.18,0.00042465,120]
[367020676,1750618321022,-460.0,0.00042465,120]
[367020678,1750618321072,-460.0,0.00042465,120]
[367020680,1750618321127,-460.0,0.00042465,120]
[367020681,1750618321177,-460.0,0.00042465,120]
[367020683,1750618321226,-460.0,0.00042465,120]
[367020686,1750618321282,-460.0,0.00042465,120]
[367020688,1750618321336,-500.0,0.00042465,120]
[367020690,1750618321392,-639.38,0.00042465,120]
[367020692,1750618321445,-460.0,0.00042465,120]
[367020694,1750618321500,-460.0,0.00042465,120]
[367020695,1750618321558,-460.0,0.00042465,120]
[367020698,1750618321614,-460.0,0.00042465,120]
[367020700,1750618321671,-1320.19,0.00042465,120]
[367020702,1750618321729,-269.33171345,0.00042465,120]
[367020704,1750618321787,-538.59,0.00042465,120]
[367020705,1750618321841,-572.63,0.00042465,120]
[367020706,1750618321893,-460.0,0.00042465,120]
[367020707,1750618321945,-460.0,0.00042465,120]
[367020708,1750618321997,-460.0,0.00042465,120]
[367020709,1750618322049,-993.43,0.00042465,120]
[367020710,1750618322100,-460.0,0.00042465,120]
[367020712,1750618322144,-460.0,0.00042465,120]
[367020714,1750618322196,-196.00646806,0.00042465,120]
[367020716,1750618322251,-460.0,0.00042465,120]
[367020718,1750618322304,-460.0,0.00042465,120]
[367020719,1750618322357,-460.0,0.00042465,120]
[367020722,1750618322413,-460.0,0.00042465,120]
[367020724,1750618322469,-966.4,0.00042465,120]
[367020726,1750618322526,-460.0,0.00042465,120]
[367020728,1750618322584,-460.0,0.00042465,120]
[367020730,1750618322639,-460.0,0.00042465,120]
[367020732,1750618322698,-460.0,0.00042465,120]
[367020734,1750618322754,-307.10449703,0.00042465,120]
[367020735,1750618322810,-460.0,0.00042465,120]
[367020738,1750618322870,-460.0,0.00042465,120]
[367020740,1750618322930,-460.0,0.00042465,120]
[367020742,1750618322987,-460.0,0.00042465,120]
[367020744,1750618323045,-460.0,0.00042465,120]
[367020745,1750618323105,-460.0,0.00042465,120]
[367020748,1750618323163,-460.0,0.00042465,120]
[367020749,1750618323222,-460.0,0.00042465,120]
[367020752,1750618323280,-460.0,0.00042465,120]
[367020753,1750618323341,-460.0,0.00042465,120]
[367020756,1750618323402,-460.0,0.00042465,120]
[367020758,1750618323460,-1302.28,0.00042465,120]
[367020760,1750618323519,-464.0,0.00042465,120]
[367020762,1750618323579,-832.9,0.00042465,120]
[367020764,1750618323638,-624.68,0.00042465,120]
[367020766,1750618323698,-460.0,0.00042465,120]
[367020768,1750618323757,-1011.44,0.00042465,120]
[367020770,1750618323817,-460.0,0.00042465,120]
[367020772,1750618323876,-1005.62,0.00042465,120]
[367020774,1750618323935,-460.0,0.00042465,120]
[367020776,1750618323995,-460.0,0.00042465,120]
[367020778,1750618324054,-460.0,0.00042465,120]
[367020780,1750618324114,-460.0,0.00042465,120]
[367020782,1750618324172,-460.0,0.00042465,120]
[367020784,1750618324228,-460.0,0.00042465,120]
[367020785,1750618324286,-460.0,0.00042465,120]
[367020788,1750618324346,-851.34,0.00042465,120]
[367020790,1750618324406,-856.64,0.00042465,120]
[367020792,1750618324462,-517.7346008,0.00042465,120]
[367020794,1750618324518,-460.0,0.00042465,120]
[367020796,1750618324574,-187.65336621,0.00042465,120]
[367020798,1750618324632,-493.28,0.00042465,120]
[367020800,1750618324690,-460.0,0.00042465,120]
[367020802,1750618324745,-460.0,0.00042465,120]
[367020804,1750618324802,-460.0,0.00042465,120]
[367020806,1750618324859,-460.0,0.00042465,120]
[367020808,1750618324914,-460.0,0.00042465,120]
[367020810,1750618324969,-752.46,0.00042465,120]
[367020812,1750618325026,-580.34,0.00042465,120]
[367020814,1750618325083,-762.42,0.00042465,120]
[367020816,1750618325138,-460.0,0.00042465,120]
[367020818,1750618325196,-460.0,0.00042465,120]
[367020820,1750618325253,-1076.55,0.00042465,120]
[367020821,1750618325309,-460.0,0.00042465,120]
[367020824,1750618325370,-460.0,0.00042465,120]
[367020826,1750618325425,-460.0,0.00042465,120]
[367020828,1750618325482,-500.0,0.00042465,120]
[367020830,1750618325540,-460.0,0.00042465,120]
[367020832,1750618325597,-977.24,0.00042465,120]
[367020834,1750618325654,-1783.95,0.00042465,120]
[367020836,1750618325713,-8894.79,0.00042465,120]
[367020838,1750618325770,-1760.96,0.00042465,120]
[367020839,1750618325826,-460.0,0.00042465,120]
[367020841,1750618325885,-460.0,0.00042465,120]
[367020843,1750618325940,-460.0,0.00042465,120]
[367020846,1750618325995,-460.0,0.00042465,120]
[367020847,1750618326048,-460.0,0.00042465,120]
[367020850,1750618326108,-2867.12,0.00042465,120]
[367020855,1750618326324,-586.65,0.00042465,120]
[367020857,1750618326380,-1409.36,0.00042465,120]
[367020859,1750618326437,-471.05,0.00042465,120]
[367020861,1750618326492,-633.38,0.00042465,120]
[367020862,1750618326551,-460.0,0.00042465,120]
[367020865,1750618326608,-460.0,0.00042465,120]
[367020867,1750618326668,-460.0,0.00042465,120]
[367020869,1750618326726,-460.0,0.00042465,120]
[367020870,1750618326780,-460.0,0.00042465,120]
[367020873,1750618326836,-2000.81,0.00042465,120]
[367020875,1750618326892,-688.84,0.00042465,120]
[367020876,1750618326948,-460.0,0.00042465,120]
[367020878,1750618327002,-482.19,0.00042465,120]
[367020880,1750618327057,-460.0,0.00042465,120]
[367020883,1750618327114,-484.12,0.00042465,120]
[367020885,1750618327169,-460.0,0.00042465,120]
[367020887,1750618327223,-554.76,0.00042465,120]
[367020889,1750618327277,-460.0,0.00042465,120]
[367020891,1750618327332,-460.0,0.00042465,120]
[367020893,1750618327387,-494.79,0.00042465,120]
[367020895,1750618327444,-460.0,0.00042465,120]
[367020897,1750618327501,-460.0,0.00042465,120]
[367020898,1750618327556,-2426.2,0.00042465,120]
[367020901,1750618327617,-1143.89,0.00042465,120]
[367020903,1750618327676,-460.0,0.00042465,120]
[367020905,1750618327732,-1046.85,0.00042465,120]
[367020907,1750618327790,-925.84,0.00042465,120]
[367020909,1750618327845,-597.73,0.00042465,120]
[367020911,1750618327901,-11265.91,0.00042465,120]
[367020912,1750618327957,-460.0,0.00042465,120]
[367020915,1750618328012,-6160.7,0.00042465,120]
[367020916,1750618328062,-460.0,0.00042465,120]
[367020917,1750618328114,-491.04,0.00042465,120]
[367020918,1750618328167,-1189.67,0.00042465,120]
[367020919,1750618328219,-1798.04,0.00042465,30]
[367020921,1750618328265,-470.58,0.00042465,120]
[367020923,1750618328308,-3579.12,0.00042465,120]
[367020924,1750618328362,-1249.6,0.00042465,120]
[367020927,1750618328417,-10666.48,0.00042465,120]
[367020928,1750618328467,-460.0,0.00042465,120]
[367020929,1750618328516,-573.96105758,0.00042465,120]
[367020930,1750618328568,-1777.05,0.00042465,120]
[367020931,1750618328619,-582.51,0.00042465,120]
[367020932,1750618328670,-460.0,0.00042465,120]
[367020935,1750618328725,-1267.32,0.00042465,120]
[367020937,1750618328781,-544.23,0.00042465,120]
[367020938,1750618328836,-460.0,0.00042465,120]
[367020941,1750618328891,-460.0,0.00042465,120]
[367020943,1750618328945,-460.0,0.00042465,120]
[367020945,1750618328998,-460.0,0.00042465,120]
[367020947,1750618329052,-485.02,0.00042465,120]
[367020949,1750618329106,-2652.41,0.00042465,120]
[367020951,1750618329165,-460.0,0.00042465,120]
[367020953,1750618329221,-460.0,0.00042465,120]
[367020954,1750618329277,-579.35,0.00042465,120]
[367020956,1750618329333,-724.13,0.00042465,120]
[367020958,1750618329387,-460.0,0.00042465,120]
[367020960,1750618329442,-475.23,0.00042465,120]
[367020962,1750618329500,-3283.97,0.00042465,120]
[367020965,1750618329556,-460.0,0.00042465,120]
[367020967,1750618329611,-8136.01,0.00042465,120]
[367020969,1750618329669,-1594.18,0.00042465,120]
[367020971,1750618329722,-460.0,0.00042465,120]
[367020972,1750618329776,-460.0,0.00042465,120]
[367020974,1750618329829,-683.88,0.00042465,120]
[367020977,1750618329884,-528.57,0.00042465,120]
[367020979,1750618329937,-3929.24,0.00042465,120]
[367020981,1750618329990,-460.0,0.00042465,30]
[367020983,1750618330045,-1876.21,0.00042465,120]
[367020984,1750618330099,-460.0,0.00042465,120]
[367020987,1750618330153,-603.53,0.00042465,120]
[367020988,1750618330208,-460.0,0.00042465,120]
[367020991,1750618330262,-6261.38,0.00042465,120]
[367020993,1750618330317,-769.92,0.00042465,120]
[367020994,1750618330368,-7683.05,0.00042465,120]
[367020995,1750618330419,-460.0,0.00042465,120]
[367020996,1750618330469,-460.0,0.00042465,120]
[367020997,1750618330522,-666.34,0.00042465,120]
[367020998,1750618330571,-460.0,0.00042465,120]
[367020999,1750618330623,-460.0,0.00042465,120]
[367021000,1750618330673,-460.0,0.00042465,120]
[367021001,1750618330723,-12955.9,0.00042465,120]
[367021002,1750618330772,-460.0,0.00042465,120]
[367021003,1750618330825,-200.0,0.00042689,120]
[367021005,1750618330871,-518.48,0.00042739,120]
[367021006,1750618330920,-460.0,0.00042739,120]
[367021007,1750618330971,-460.0,0.00042739,120]
[367021008,1750618331021,-460.0,0.00042739,120]
[367021010,1750618331067,-460.0,0.00042739,120]
[367021011,1750618331112,-460.0,0.00042739,120]
[367021012,1750618331159,-460.0,0.00042739,120]
[367021014,1750618331199,-1226.97,0.00042739,120]
[367021015,1750618331240,-460.0,0.00042739,120]
[367021016,1750618331288,-460.0,0.00042739,120]
[367021019,1750618331476,-460.0,0.00042739,120]
[367021021,1750618331525,-460.0,0.00042739,120]
[367021023,1750618331581,-460.0,0.00042739,120]
[367021024,1750618331632,-300.3651655,0.00042739,120]
[367021026,1750618331682,-460.0,0.00042739,120]
[367021028,1750618331728,-460.0,0.00042739,120]
[367021029,1750618331779,-460.0,0.00042739,120]
[367021031,1750618331828,-460.0,0.00042739,120]
[367021032,1750618331871,-460.0,0.00042739,120]
[367021034,1750618331918,-556.90994668,0.00042739,120]
[367021036,1750618331960,-460.0,0.00042739,120]
[367021037,1750618332008,-460.0,0.00042739,120]
[367021038,1750618332065,-472.25104425,0.00042739,120]
[367021039,1750618332116,-460.0,0.00042739,120]
[367021040,1750618332166,-460.0,0.00042739,120]
[367021041,1750618332216,-345.44618493,0.00042739,120]
[367021042,1750618332265,-460.0,0.00042739,120]
[367021043,1750618332316,-692.24,0.00042739,120]
[367021044,1750618332365,-164.76408716,0.00042739,120]
[367021045,1750618332413,-597.85225218,0.00042739,120]
[367021046,1750618332462,-460.0,0.00042739,120]
[367021047,1750618332510,-460.0,0.00042739,120]
[367021048,1750618332558,-460.0,0.00042739,120]
[367021049,1750618332606,-460.0,0.00042739,120]
[367021050,1750618332656,-234.92233172,0.00042739,120]
[367021051,1750618332701,-460.0,0.00042739,120]
[367021053,1750618332752,-460.0,0.00042739,120]
[367021054,1750618332803,-555.51,0.00042739,120]
[367021055,1750618332853,-532.37,0.00042739,120]
[367021056,1750618332903,-460.0,0.00042739,120]
[367021058,1750618332945,-521.52608653,0.00042739,120]
[367021059,1750618332991,-495.08537339,0.00042739,120]
[367021061,1750618333034,-719.72,0.00042739,120]
[367021062,1750618333079,-460.0,0.00042739,120]
[367021063,1750618333124,-1268.62,0.00042739,120]
[367021065,1750618333167,-505.81811383,0.00042739,120]
[367021067,1750618333205,-460.0,0.00042739,120]
[367021068,1750618333246,-460.0,0.00042739,120]
[367021069,1750618333292,-726.12,0.00042739,120]
[367021071,1750618333332,-924.87,0.00042739,120]
[367021072,1750618333376,-460.0,0.00042739,120]
[367021073,1750618333422,-575.61,0.00042739,120]
[367021074,1750618333471,-471.46,0.00042739,120]
[367021076,1750618333520,-460.0,0.00042739,120]
[367021077,1750618333569,-159.92039952,0.00042739,120]
[367021078,1750618333619,-460.0,0.00042739,120]
[367021080,1750618333671,-460.0,0.00042739,120]
[367021081,1750618333718,-460.0,0.00042739,120]
[367021082,1750618333765,-460.0,0.00042739,120]
[367021083,1750618333815,-554.94,0.00042739,120]
[367021085,1750618333859,-531.81,0.00042739,120]
[367021086,1750618333907,-626.48,0.00042739,120]
[367021087,1750618333955,-460.0,0.00042739,120]
[367021089,1750618333995,-460.0,0.00042739,120]
[367021091,1750618334037,-460.0,0.00042739,120]
[367021092,1750618334078,-352.70176802,0.00042739,120]
[367021093,1750618334120,-460.0,0.00042739,120]
[367021095,1750618334160,-460.0,0.00042739,120]
[367021097,1750618334207,-460.0,0.00042739,120]
[367021098,1750618334258,-460.0,0.00042739,120]
[367021100,1750618334303,-460.0,0.00042739,120]
[367021102,1750618334347,-733.82,0.00042739,120]
[367021103,1750618334393,-500.0,0.00042739,14]
[367021104,1750618334442,-463.12,0.00042739,120]
[367021105,1750618334493,-636.64,0.00042739,120]
[367021106,1750618334546,-1059.62,0.00042739,120]
[367021108,1750618334598,-460.0,0.00042739,120]
[367021109,1750618334648,-460.0,0.00042739,120]
[367021111,1750618334696,-460.0,0.00042739,120]
[367021112,1750618334747,-3646.26,0.00042739,120]
[367021114,1750618334793,-460.0,0.00042739,120]
[367021115,1750618334842,-477.42,0.00042739,120]
[367021117,1750618334886,-460.0,0.00042739,120]
[367021118,1750618334935,-460.0,0.00042739,120]
[367021120,1750618334982,-460.0,0.00042739,120]
[367021121,1750618335037,-352.57243367,0.00042739,120]
[367021122,1750618335092,-460.0,0.00042739,120]
[367021123,1750618335144,-460.0,0.00042739,120]
[367021124,1750618335193,-561.59184115,0.00042739,120]
[367021125,1750618335247,-460.0,0.00042739,120]
[367021126,1750618335296,-460.0,0.00042739,120]
[367021127,1750618335345,-569.76,0.00042739,120]
[367021128,1750618335397,-236.35866694,0.00042739,120]
[367021129,1750618335449,-462.94,0.00042739,120]
[367021130,1750618335499,-460.0,0.00042739,120]
[367021131,1750618335552,-150.50637422,0.00042739,120]
[367021132,1750618335606,-257.02634454,0.00042739,120]
[367021133,1750618335660,-467.65,0.00042739,120]
[367021134,1750618335714,-460.0,0.00042739,120]
[367021135,1750618335766,-460.0,0.00042739,120]
[367021136,1750618335817,-460.0,0.00042739,120]
[367021137,1750618335866,-567.25,0.00042739,120]
[367021139,1750618335912,-460.0,0.00042739,120]
[367021140,1750618335959,-460.0,0.00042739,120]
[367021141,1750618336006,-641.12,0.00042739,120]
[367021145,1750618336195,-460.0,0.00042739,120]
[367021147,1750618336243,-460.0,0.00042739,120]
[367021149,1750618336289,-1004.95,0.00042739,120]
[367021151,1750618336333,-460.0,0.00042739,120]
[367021153,1750618336375,-460.0,0.00042739,120]
[367021154,1750618336417,-460.0,0.00042739,120]
[367021155,1750618336462,-2639.78,0.00042739,120]
[367021156,1750618336514,-460.0,0.00042739,120]
[367021157,1750618336567,-616.99,0.00042739,120]
[367021159,1750618336630,-2242.43,0.00042739,120]
[367021160,1750618336689,-460.0,0.00042739,120]
[367021161,1750618336747,-612.4,0.00042739,120]
[367021162,1750618336803,-330.65541303,0.00042739,120]
[367021164,1750618336858,-460.0,0.00042739,120]
[367021165,1750618336912,-783.25,0.00042739,120]
[367021167,1750618336962,-460.0,0.00042739,120]
[367021168,1750618337012,-460.0,0.00042739,120]
[367021170,1750618337058,-460.0,0.00042739,120]
[367021171,1750618337109,-460.0,0.00042739,120]
[367021173,1750618337164,-460.0,0.00042739,120]
[367021174,1750618337216,-460.0,0.00042739,120]
[367021175,1750618337265,-460.0,0.00042739,120]
[367021176,1750618337317,-502.89,0.00042739,120]
[367021178,1750618337360,-460.0,0.00042739,120]
[367021180,1750618337407,-754.1,0.00042739,120]
[367021181,1750618337460,-460.0,0.00042739,120]
[367021184,1750618337514,-460.0,0.00042739,120]
[367021186,1750618337569,-460.0,0.00042739,120]
[367021187,1750618337621,-394.69151476,0.00042739,120]
[367021188,1750618337674,-822.18,0.00042739,120]
[367021189,1750618337725,-460.0,0.00042739,120]
[367021190,1750618337775,-460.0,0.00042739,120]
[367021191,1750618337829,-460.0,0.00042739,120]
[367021193,1750618337878,-460.0,0.00042739,120]
[367021195,1750618337924,-460.0,0.00042739,120]
[367021196,1750618337971,-460.0,0.00042739,120]
[367021197,1750618338018,-500.0,0.00042739,120]
[367021198,1750618338071,-639.38,0.00042739,120]
[367021199,1750618338123,-157.38469569,0.00042739,120]
[367021200,1750618338176,-460.0,0.00042739,120]
[367021202,1750618338226,-460.0,0.00042739,120]
[367021204,1750618338271,-460.0,0.00042739,120]
[367021205,1750618338318,-1320.19,0.00042739,120]
[367021206,1750618338371,-538.59,0.00042739,120]
[367021208,1750618338421,-572.63,0.00042739,120]
[367021209,1750618338470,-460.0,0.00042739,120]
[367021211,1750618338518,-460.0,0.00042739,120]
[367021213,1750618338558,-460.0,0.00042739,120]
[367021214,1750618338605,-460.0,0.00042739,120]
[367021215,1750618338656,-993.43,0.00042739,120]
[367021216,1750618338709,-460.0,0.00042739,120]
[367021218,1750618338759,-460.0,0.00042739,120]
[367021220,1750618338806,-460.0,0.00042739,120]
[367021222,1750618338850,-460.0,0.00042739,120]
[367021224,1750618338902,-460.0,0.00042739,120]
[367021225,1750618338953,-966.4,0.00042739,120]
[367021226,1750618339001,-571.74866647,0.00042739,120]
[367021228,1750618339045,-578.66057676,0.00042739,120]
[367021230,1750618339086,-460.0,0.00042739,120]
[367021231,1750618339132,-460.0,0.00042739,120]
[367021233,1750618339175,-460.0,0.00042739,120]
[367021234,1750618339222,-460.0,0.00042739,120]
[367021235,1750618339272,-460.0,0.00042739,120]
[367021236,1750618339321,-460.0,0.00042739,120]
[367021237,1750618339370,-460.0,0.00042739,120]
[367021239,1750618339421,-460.0,0.00042739,120]
[367021240,1750618339474,-460.0,0.00042739,120]
[367021242,1750618339521,-460.0,0.00042739,120]
[367021244,1750618339566,-248.09604341,0.00042739,120]